Cogmind - Beta 11.1 @@@ ROGUE MODE // 2022.05.18 @ 22:36:17 Player: ChromeKnight Result: Destroyed by S-10 Pest with Light Assault Rifle Performance ------------- Evolutions (2) 1000 Regions Visited (7) 1400 Robots Destroyed (61) 305 Value Destroyed (1263) 1263 Prototype IDs (1) 20 Alien Tech Used (0) 0 Bonus (-906) -906 TOTAL SCORE: 3082 Bonus ------- Follower Combat Kills 110 Friendly Fire -1016 Cogmind --------- Core Integrity 0/550 Matter 201/300 Energy 100/100 System Corruption 2% Temperature Cool (0) Movement Hovering (240) Ox3 Location -8/Materials Parts ------- > --- POWER (1) -------- (None) > --- PROPULSION (2) --- Improved Hover Unit > --- UTILITY (6) ------ Large Storage Unit Improved Propulsion Shielding > --- WEAPON (2) ------- Improved Assault Rifle > --- INVENTORY (15) --- Light Deuterium Engine Light Deuterium Engine Faulty Experimental Sensor Array Utility Shielding Reactive Plating Improved Assault Rifle Improved Assault Rifle Improved Assault Rifle Improved Assault Rifle Peak State ------------ > --- POWER ------------ Light Deuterium Engine > --- PROPULSION ------- Light Treads Improved Treads > --- UTILITY ---------- Improved Heat Sink Advanced Heat Sink Large Storage Unit Medium Armor Plating > --- WEAPON ----------- Autogun Autogun > --- INVENTORY -------- Light Deuterium Engine Light Deuterium Engine Improved Hover Unit Improved Hover Unit Improved Hover Unit Visual Processing Unit Experimental Sensor Array Utility Shielding Hardened Light Armor Plating Improved Assault Rifle Improved Assault Rifle Improved Assault Rifle Improved Assault Rifle Improved Assault Rifle Grenade Launcher [Rating: 25] Favorites ----------- Power Improved Deuterium Engine Engine Improved Deuterium Engine Power Core Light Nuclear Core Propulsion Light Treads Treads Light Treads Leg Aluminum Leg Hover Unit Improved Hover Unit Utility Large Storage Unit Device Improved Heat Sink Storage Large Storage Unit Processor Visual Processing Unit Protection Light Armor Plating Weapon Autogun Energy Gun Spread Laser Ballistic Gun Autogun Launcher Grenade Launcher Build | -11 -10 -10 -9 -9 -9 -8 -8 ------- Run | Scr Mat Min Mat Min Exi Min Mat Slots Evolved 4 | . . . 2 . . . 2 Power . | . . . . . . . . Propulsion . | . . . . . . . . Utility 4 | . . . 2 . . . 2 Weapon . | . . . . . . . . Parts Attached 46 | 7 . 2 15 5 . 4 13 Power 6 | 1 . 1 1 1 . 1 1 Engine 5 | 1 . 1 1 . . 1 1 Core 1 | . . . . 1 . . . Reactor . | . . . . . . . . Propulsion 9 | 3 . . 2 . . . 4 Treads 5 | 2 . . 2 . . . 1 Leg 1 | 1 . . . . . . . Wheel . | . . . . . . . . Hover 3 | . . . . . . . 3 Flight . | . . . . . . . . Utility 13 | 1 . 1 3 2 . . 6 Device 3 | . . 1 1 1 . . . Storage 2 | 1 . . 1 . . . . Processor 1 | . . . . . . . 1 Hackware . | . . . . . . . . Protection 7 | . . . 1 1 . . 5 Artifact . | . . . . . . . . Weapon 18 | 2 . . 9 2 . 3 2 Energy Gun 1 | . . . 1 . . . . Energy Cannon . | . . . . . . . . Ballistic Gun 14 | 2 . . 8 1 . 2 1 Ballistic Cannon . | . . . . . . . . Launcher 3 | . . . . 1 . 1 1 Special Weapon . | . . . . . . . . Impact Weapon . | . . . . . . . . Slashing Weapon . | . . . . . . . . Piercing Weapon . | . . . . . . . . Special Melee Weapon . | . . . . . . . . Unidentified Prototypes 1 | . . . 1 . . . . Parts Lost 13 | . . . 1 3 . 2 7 Power 1 | . . . . . . 1 . Propulsion 4 | . . . . . . . 4 Utility 5 | . . . . 3 . . 2 Weapon 3 | . . . 1 . . 1 1 Highest Loss Streak 5 | . . . 1 2 . 2 5 To Critical Strikes . | . . . . . . . . Average Slot Usage (%) 84 | . 85 94 90 89 77 74 58 Engine 8 | . 14 14 11 5 . 6 6 Core 2 | . . . . 5 11 2 . Treads 23 | . 28 28 22 22 22 22 14 Device 11 | . . 8 17 18 11 11 1 Storage 11 | . 14 14 11 11 11 11 9 Protection 2 | . . . 5 5 . . 6 Energy Gun 1 | . . . 6 . . . . Ballistic Gun 19 | . 28 28 15 21 22 13 6 Launcher 1 | . . . . . . 8 6 Naked Turns . | . . . . . . . . Heaviest Build 60 | 13 13 19 41 40 32 32 60 Greatest Support 43 | 40 40 40 43 43 43 43 43 Greatest Overweight (x) 6 | . . . . . . . 6 Average Overweight (x) . | . . . . . . . . Largest Inventory Capacity 15 | 8 8 8 15 15 15 15 15 Average Capacity 12 | 6 8 8 10 15 15 15 15 Most Carried 15 | . 8 8 15 15 15 15 15 Average Carried 11 | . 3 7 9 15 15 15 14 Final Capacity 15 | 8 8 8 15 15 15 15 15 Final Carried 15 | . 8 8 15 15 15 15 9 Class Distribution -------------------- 73% | Mutant 26% | Scavenger-Mutant Dominant Class ---------------- Mutant | -10/Materials Mutant | -10/Mines Scavenger-Mutant | -9/Materials Mutant | -9/Mines Mutant | -9/Exiles Scavenger-Mutant | -8/Mines Mutant | -8/Materials Resources | -11 -10 -10 -9 -9 -9 -8 -8 ----------- Run | Scr Mat Min Mat Min Exi Min Mat Matter Collected 1297 | 226 12 120 345 293 . 150 151 Remotely . | . . . . . . . . Salvage Created 1555 | . 12 109 765 395 . 118 156 Parts 102 | . 3 3 34 34 . 21 7 Haulers Intercepted 2 | . . . 2 . . . . Recyclers Shooed 3 | . . . 3 . . . . Parts Field Recycled . | . . . . . . . . Retrieved Matter . | . . . . . . . . Parts Self-Destructed . | . . . . . . . . Prevented . | . . . . . . . . Kills | -11 -10 -10 -9 -9 -9 -8 -8 ------- Run | Scr Mat Min Mat Min Exi Min Mat Combat Hostiles Destroyed 48 | . . . 14 16 . 12 6 Guns 31 | . . . 14 13 . 4 . AOE 17 | . . . . 3 . 8 6 Classes Destroyed 11 | . 1 . 6 . . 1 3 Worker 1 | . . . . . . 1 . Hauler 2 | . . . 2 . . . . Recycler 4 | . . . 2 2 . . . Operator 1 | . . . . . . . 1 Watcher 4 | . 1 . 3 . . . . Swarmer 29 | . . . 3 14 . 12 . Grunt 12 | . . . 7 2 . . 3 Brawler 1 | . . . . . . . 1 Duelist 1 | . . . 1 . . . . Sentry 4 | . . . 3 . . . 1 Hunter 1 | . . . . . . . 1 Best Kill Streak 6 | . 1 . 5 5 . 6 3 Combat Bots Only 6 | . . . 5 4 . 6 3 Max Kills in Single Turn 4 | . 1 1 1 2 . 4 2 Gunslinging 1 | . . . . 1 . 1 . Exploded 3 | . . . . 1 . 3 2 Melee . | . . . . . . . . Uniques/NPCs Destroyed 1 | . . 1 . . . . . YI-UF0 (-10/Mines) Combat | -11 -10 -10 -9 -9 -9 -8 -8 -------- Run | Scr Mat Min Mat Min Exi Min Mat Damage Taken 3107 | . . 10 645 511 . 328 1613 Core 763 | . . . 79 54 . 73 557 Absorbed by Shields . | . . . . . . . . Redirected to Shielding 69 | . . . . . . . 69 Core Remaining (%) 82 | 100 . 100 . . . 48 . Volleys Fired 123 | . 4 13 49 30 . 11 16 Largest 2 | . 2 2 2 2 . 2 2 Hottest 88 | . 40 40 88 53 . 53 56 Shots Fired 238 | . 8 26 94 60 . 22 28 Gun 219 | . 8 26 94 57 . 18 16 Cannon . | . . . . . . . . Launcher 19 | . . . . 3 . 4 12 Special . | . . . . . . . . Kinetic 184 | . 8 26 59 57 . 18 16 Thermal 35 | . . . 35 . . . . Explosive 19 | . . . . 3 . 4 12 Electromagnetic . | . . . . . . . . Robot Hit Streak 12 | . 3 12 11 6 . 6 9 Robot Miss Streak 4 | . 1 2 4 4 . 1 4 Penetration Max . | . . . . . . . . Secondary Targets 5 | . . . 1 3 . 1 . Max Gunslinging Chain 1 | . . . 1 1 . 1 . Shots Hit Robots 163 | . 5 21 73 29 . 14 21 Core Hits 123 | . 3 6 66 20 . 15 13 Critical Kills 1 | . . . . 1 . . . Critical Parts Destroyed 2 | . 1 . . . . 1 . Critical Strikes 3 | . 1 . . 1 . 1 . Destroy 3 | . 1 . . 1 . 1 . Melee Attacks . | . . . . . . . . Impact . | . . . . . . . . Slashing . | . . . . . . . . Piercing . | . . . . . . . . Sneak Attacks . | . . . . . . . . Combat Hostiles . | . . . . . . . . Follow-up Attacks . | . . . . . . . . Damage Inflicted 3347 | . 56 218 986 661 . 603 823 Guns 1928 | . 56 218 986 438 . 163 67 Cannons . | . . . . . . . . Explosions 1417 | . . . . 223 . 440 754 Melee . | . . . . . . . . Ramming 2 | . . . . . . . 2 Kinetic 1453 | . 56 218 511 438 . 163 67 Thermal 601 | . . . 475 . . . 126 Explosive 1291 | . . . . 223 . 440 628 Electromagnetic . | . . . . . . . . Impact . | . . . . . . . . Slashing . | . . . . . . . . Piercing . | . . . . . . . . Highest Corruption 2 | . . . 1 1 1 1 2 Average Corruption 1 | . . . 1 1 1 1 2 Corruption Purged . | . . . . . . . . Corruption Blocked . | . . . . . . . . Effects 16 | . . . 4 7 . 4 1 Message Errors 2 | . . . . 1 . 1 . Matter Fused 4 | . . . 2 1 . 1 . Heat Flow Errors 2 | . . . 2 . . . . Energy Discharges 4 | . . . . 3 . 1 . Data Loss (minor) 3 | . . . . 2 . 1 . Data Loss (major) 1 | . . . . . . . 1 Overload Shots . | . . . . . . . . Overflow Damage 65 | . . . . 30 . 29 6 Projectiles . | . . . . . . . . Explosions 65 | . . . . 30 . 29 6 Melee . | . . . . . . . . Knockbacks . | . . . . . . . . Impact . | . . . . . . . . Kinetic . | . . . . . . . . Secondary . | . . . . . . . . Self-Inflicted Damage 257 | . . . . 37 . 64 156 Shots 8 | . . . . 1 . 2 5 Rammed 1 | . . . . . . . 1 Targets Rammed 1 | . . . . . . . 1 Kicked . | . . . . . . . . Crushed . | . . . . . . . . Highest Temperature 115 | . . . 115 . . . 86 Average Temperature 30 | . . . 63 . . . 26 Received Heat Transfer 786 | . . 6 219 30 . . 531 Siege Activations . | . . . . . . . . Robots Corrupted . | . . . . . . . . Combat Hostiles . | . . . . . . . . Parts Fried . | . . . . . . . . Impact Corruptions . | . . . . . . . . Robots Melted . | . . . . . . . . Combat Hostiles . | . . . . . . . . Parts Melted 1 | . . . 1 . . . . Heat Transferred 695 | . . . 595 . . . 100 Parts Sabotaged . | . . . . . . . . Parts Stolen . | . . . . . . . . Parts Stripped . | . . . . . . . . Power Chain Reactions . | . . . . . . . . Missiles Intercepted . | . . . . . . . . Alert | -11 -10 -10 -9 -9 -9 -8 -8 ------- Run | Scr Mat Min Mat Min Exi Min Mat Peak Influence 333 | . 48 58 330 304 . 289 333 Initial 70 | . . 18 . 70 . . . Average 127 | . 34 20 186 208 . 105 171 Maximum Alert Level 1 | . . . 1 1 . 1 1 Low Security (%) 75 | 100 100 100 65 56 . 75 65 Level 1 24 | . . . 34 43 . 24 34 Level 2 . | . . . . . . . . Level 3 . | . . . . . . . . Level 4 . | . . . . . . . . Level 5 . | . . . . . . . . High Security . | . . . . . . . . Max Security . | . . . . . . . . Squads Dispatched 2 | . 1 . . . . . 1 Investigation 1 | . . . . . . . 1 Extermination . | . . . . . . . . Reinforcement 1 | . 1 . . . . . . Assault . | . . . . . . . . Garrison . | . . . . . . . . Intercept . | . . . . . . . . Searches Triggered . | . . . . . . . . Construction Impeded . | . . . . . . . . Haulers Reinforced . | . . . . . . . . Active Scanning Responses . | . . . . . . . . Cargo Convoy Interrupts . | . . . . . . . . Stealth | -11 -10 -10 -9 -9 -9 -8 -8 --------- Run | Scr Mat Min Mat Min Exi Min Mat Distress Signals 2 | . . . 1 . . . 1 Communications Jammed . | . . . . . . . . Distress Signals . | . . . . . . . . Times Spotted 75 | . 2 2 26 17 . 12 16 Peak Tracking Total 9 | . 1 2 7 4 . 6 9 Tactical Retreats 2 | . . . . 1 . . 1 Traps | -11 -10 -10 -9 -9 -9 -8 -8 ------- Run | Scr Mat Min Mat Min Exi Min Mat Traps Triggered 2 | . . . 1 . . . 1 Indirectly . | . . . . . . . . Trap Hack Attempts . | . . . . . . . . Triggered . | . . . . . . . . Disarmed . | . . . . . . . . Reprogrammed . | . . . . . . . . Reused . | . . . . . . . . Traps Extracted . | . . . . . . . . Installed . | . . . . . . . . Triggered . | . . . . . . . . Machines | -11 -10 -10 -9 -9 -9 -8 -8 ---------- Run | Scr Mat Min Mat Min Exi Min Mat Machines Disabled 6 | . . . 1 2 . . 3 Max in Single Turn 1 | . . . 1 1 . . 1 Machines Sabotaged . | . . . . . . . . Garrisons Compromised . | . . . . . . . . Overloaded Fab Kills . | . . . . . . . . Hacking | -11 -10 -10 -9 -9 -9 -8 -8 --------- Run | Scr Mat Min Mat Min Exi Min Mat Machines Accessed 8 | . 3 . 5 . . . . Terminals 8 | . 3 . 5 . . . . Fabricators . | . . . . . . . . Repair Stations . | . . . . . . . . Recycling Units . | . . . . . . . . Scanalyzers . | . . . . . . . . Garrison Access . | . . . . . . . . Total Hacks 26 | . 8 . 18 . . . . Successful 10 | . 4 . 6 . . . . Failed 16 | . 4 . 12 . . . . Catastrophic 4 | . . . 4 . . . . Database Lockouts . | . . . . . . . . Manual 23 | . 6 . 17 . . . . Terminals 26 | . 8 . 18 . . . . Fabricators . | . . . . . . . . Repair Stations . | . . . . . . . . Recycling Units . | . . . . . . . . Scanalyzers . | . . . . . . . . Garrison Access . | . . . . . . . . Terminal Hacks 2 | . . . 2 . . . . Branch Access Points 1 | . . . 1 . . . . Zone Layout 1 | . . . 1 . . . . Fabricator Hacks . | . . . . . . . . Repair Station Hacks . | . . . . . . . . Recycling Unit Hacks . | . . . . . . . . Scanalyzer . | . . . . . . . . Garrison Access Hacks . | . . . . . . . . Unauthorized Hacks 8 | . 4 . 4 . . . . Terminals 8 | . 4 . 4 . . . . Botnet 6 | . 3 . 3 . . . . Operators 2 | . 1 . 1 . . . . Fabricators . | . . . . . . . . Repair Stations . | . . . . . . . . Recycling Units . | . . . . . . . . Scanalyzers . | . . . . . . . . Garrison Access . | . . . . . . . . Data Cores Recovered 1 | . . . . . . . 1 Used . | . . . . . . . . Hacking Detections 7 | . 2 . 5 . . . . Full Trace Events . | . . . . . . . . Feedback Events . | . . . . . . . . Feedback Blocked . | . . . . . . . . Robot Schematics Acquired . | . . . . . . . . Robots Built . | . . . . . . . . Authchips . | . . . . . . . . Time . | . . . . . . . . Total Robot Build Rating . | . . . . . . . . Part Schematics Acquired . | . . . . . . . . Parts Built . | . . . . . . . . Authchips . | . . . . . . . . Time . | . . . . . . . . Total Part Build Rating . | . . . . . . . . Parts Repaired . | . . . . . . . . Time . | . . . . . . . . Parts Recycled . | . . . . . . . . Recycled Matter . | . . . . . . . . Retrieved Matter . | . . . . . . . . Retrieved Components . | . . . . . . . . Parts Scanalyzed . | . . . . . . . . Part Schematics Acquired . | . . . . . . . . Parts Damaged . | . . . . . . . . Bothacking | -11 -10 -10 -9 -9 -9 -8 -8 ------------ Run | Scr Mat Min Mat Min Exi Min Mat Used RIF Installer . | . . . . . . . . Robots Hacked . | . . . . . . . . Non-combat . | . . . . . . . . Combat . | . . . . . . . . Robot Hacks Applied . | . . . . . . . . Relay Couplers Released . | . . . . . . . . Fabnet Peak Effective % . | . . . . . . . . Robots Rewired . | . . . . . . . . Allies Hacked . | . . . . . . . . Hacks Repelled . | . . . . . . . . Allies | -11 -10 -10 -9 -9 -9 -8 -8 -------- Run | Scr Mat Min Mat Min Exi Min Mat Total Allies 3 | . . 3 . . . . . Largest Group 3 | . . 3 3 . . . . Highest-Rated Group 40 | . . 40 40 . . . . Highest-Rated Ally 16 | . . 16 16 . . . . Total Orders . | . . . . . . . . Ally Attacks 34 | . . 9 25 . . . . Total Damage 381 | . . 117 264 . . . . Kills 6 | . . 2 4 . . . . Allies Corrupted . | . . . . . . . . Allies Melted . | . . . . . . . . Intel | -11 -10 -10 -9 -9 -9 -8 -8 ------- Run | Scr Mat Min Mat Min Exi Min Mat Robot Analysis Total . | . . . . . . . . Derelict Logs Recovered 4 | . . 2 . 2 . . . Drone Launches . | . . . . . . . . Drone Recoveries . | . . . . . . . . Exploration | -11 -10 -10 -9 -9 -9 -8 -8 ------------- Run | Scr Mat Min Mat Min Exi Min Mat Turns Passed 5007 | 66 378 987 984 1120 224 827 421 Spaces Moved 2803 | 39 223 576 499 636 141 481 208 Core 9 | 4 . . . . . . 5 Treads 2777 | 31 223 576 499 636 141 481 190 Legs 4 | 4 . . . . . . . Wheels . | . . . . . . . . Hover 13 | . . . . . . . 13 Flight . | . . . . . . . . Fastest Speed 50 | 50 160 160 160 160 160 160 160 Average Speed 160 | 144 160 160 160 160 160 160 172 Slowest Speed 350 | 160 160 160 160 160 160 160 350 Overloaded Moves . | . . . . . . . . Propulsion Burnouts . | . . . . . . . . Robots Hopped . | . . . . . . . . Cave-ins Triggered . | . . . . . . . . Exploration Rate (%) 59 | 4 48 94 58 99 50 94 29 Regions Visited 7 Branch Regions 4 Pre-discovered Areas 2 | . . . . 2 . . . Known Exits Taken 2 | . . . 1 . 1 . . Unknown Exits Taken 5 | 1 1 1 . 1 . 1 . Scrap Searched 4 | . . 1 . 2 . 1 . Spaces Dug . | . . . . . . . . Terrain Destroyed 138 | . . . . 24 . 30 84 Melee . | . . . . . . . . Projectile . | . . . . . . . . AOE 138 | . . . . 24 . 30 84 Terrain Rammed . | . . . . . . . . Walls Destroyed . | . . . . . . . . Machines Disabled . | . . . . . . . . Actions | -11 -10 -10 -9 -9 -9 -8 -8 --------- Run | Scr Mat Min Mat Min Exi Min Mat Total 3098 | 46 237 619 599 689 140 519 249 Wait 78 | . 3 26 9 17 . 23 . Move 2796 | 38 222 575 498 635 140 480 208 Hop . | . . . . . . . . Pick Up 22 | . 8 1 12 . . . 1 Fast Attach 24 | 7 . 1 7 2 . 2 5 Attach 6 | . . . . . . . 6 Detach . | . . . . . . . . Swap 16 | . . 1 8 3 . 2 2 Drop 32 | 1 . 2 16 2 . 1 10 Fire 123 | . 4 13 49 30 . 11 16 Melee . | . . . . . . . . Ram . | . . . . . . . . Kick . | . . . . . . . . Crush 1 | . . . . . . . 1 Escape Stasis . | . . . . . . . . Rewire . | . . . . . . . . Trap . | . . . . . . . . Miscellaneous . | . . . . . . . . Route ------- -11/Scrapyard -10/Materials (discovered 3 exits: *Mat x2 / [*Min]) -10/Mines (discovered 2 exits: *Mat x2) -9/Materials (discovered 2 exits: [*Mat] / *Min) -9/Mines (discovered 3 exits: [*Mat x2] / [*Exi]) -9/Exiles (discovered 2 exits: *Min x2) -8/Mines (discovered 2 exits: [*Mat x2]) -8/Materials History --------- Turn | Location | Event 39 | -11/Scrapyard | Discovered new exit (range 15) 67 | -11/Scrapyard | Entered Materials 246 | -10/Materials | Discovered new exit (range 13) 315 | -10/Materials | Build established: Mutant 351 | -10/Materials | Discovered new exit (range 8) 352 | -10/Materials | Discovered new exit (range 16) 445 | -10/Materials | Entered Mines 580 | -10/Mines | Discovered new exit (range 7) 765 | -10/Mines | Learned Materials garrison access intel 781 | -10/Mines | Assisted by bots powering up and referring to "LRC-V3" 790 | -10/Mines | YI-UF0 nonchalantly dropped a Grenade Launcher on the ground 823 | -10/Mines | Destroyed YI-UF0 846 | -10/Mines | Discovered new exit (range 15) 923 | -10/Mines | Found a damaged Exp. Sensor Array with a note attached 927 | -10/Mines | Found Prototype Device 1432 | -10/Mines | Entered Materials 1432 | -9/Materials | Accompanied by 3 allies 1432 | -9/Materials | Evolved 2 slots: Utility x2 1433 | -9/Materials | Identified exit to Mines 2246 | -9/Materials | Build established: Scavenger-Mutant 2277 | -9/Materials | Discovered new exit (range 7) 2416 | -9/Materials | Entered Mines 2497 | -9/Mines | Discovered new exit (range 6) 2609 | -9/Mines | Deemed a non-threat by the Exiles lab entrance 2609 | -9/Mines | Discovered new exit (range 5) 2621 | -9/Mines | Discovered new exit (range 15) 2632 | -9/Mines | Learned location of Storage (-7) 2806 | -9/Mines | Build established: Mutant 3165 | -9/Mines | Learned location of Zion (-6) 3536 | -9/Mines | Entered Exiles 3537 | -9/Exiles | Identified exit to Mines 3575 | -9/Exiles | Met 8R-AWN 3602 | -9/Exiles | Met EX-HEX 3668 | -9/Exiles | Met EX-DEC 3740 | -9/Exiles | Discovered exit to Mines (range 11) 3760 | -9/Exiles | Entered Mines 3856 | -8/Mines | Discovered new exit (range 12) 3961 | -8/Mines | Core integrity fell below 50% 4003 | -8/Mines | Discovered new exit (range 5) 4438 | -8/Mines | Build established: Scavenger-Mutant 4587 | -8/Mines | Entered Materials 4587 | -8/Materials | Evolved 2 slots: Utility x2 4588 | -8/Materials | Loaded intel: 1 garrison access location 4912 | -8/Materials | Build established: Mutant 4970 | -8/Materials | Core integrity fell below 50% 4993 | -8/Materials | Core integrity fell below 20% 5008 | -8/Materials | Destroyed by S-10 Pest with Light Assault Rifle Last Messages --------------- 04912_ Slammed into A-02 Transporter. 04913_ U-05 Engineer lays Concrete. 04914_ U-05 Engineer builds a Wall. 04947_ Triggered Alarm Trap. 04947_ An alarm sounds. 04947_ ALERT: Alarm triggered, dispatching investigation squad. 04954_ Lgt. Treads destroyed. 04960_ Visual Processing Unit destroyed. 04960_ System corrupted by crushing effect (+2). 04968_ U-05 Engineer lays Concrete. 04972_ Knocked back. 04972_ Imp. Hover Unit destroyed. 04975_ Acquired Imp. Propulsion Shielding. 04978_ Imp. Hover Unit destroyed. 04979_ S-10 Pest destroyed. 04985_ Knocked back. 04989_ Critical hit (Burn: +37). 04998_ System corrupted: Substantial component data lost. 04998_ Critical hit (Burn: +37). 04998_ Hrd. Light Armor Plating destroyed. Map ----- +----------------------------------------------------+ | ????????????????????????????????????? | | ????????????????????????????????????? | | ????????????????????????????????????? | | ????????????????????????????????????? | | ????????????????????????????????????? | | ????????????????????????????????????? | | ????????????????????????????????????? | | ????????????????????????????????????? | | ????????????????????????????????????? | | ????????????????????????????????????? | | ????????????????????????????????????? | | ????????????????????????????????????? | | ????????????????????????????????????? | | ????????????????????????????????????? | | ????????????????????????????????????? | | ????????????????????????????????????? | | ????????????????????????????????????? | | ????????????????????????????????????? | | ????????????????????????????????????? | | ???""???????????????#######?????????? | | ???"" #+###+######## #?????????? | | ???"" " #?????????? | | ???????# s T #?????????? | | ????????+## sb !#?????????? | | ??????????# ####### % #?????????? | | ??????????# @ #?????## =########???? | | ??????????# #??????# # """""???? | | ??????????# #??????# # """"" ??? | | ??????????# #??????# + """"" ??? | | ??????????# #??????# # #? | | ??????????# #??????# # #? | | ??????????+ #??????# #? [[[ #? | | ??????????# #??????# #? [[ #? | | ??????????# #??????# #?? [[ #? | | ??????????# #??????# ##+########? | | ??????????# #??????# #####???? | | ??????????# #??????# | | ??????????# #??????# ############ | | ??????????/ ???????# #??????????? | | ??????????? ????#####+#####???????? | | ??????????? ????# ! #???????? | | ??????????????????# ! #???????? | | ??????????????????# """ #???????? | | ??????????????????# """""#???????? | | ??????????????????# """""#???????? | | ??????????????????# """""#???????? | | ??????????????????# """ #???????? | | ??????????????????#/ #???????? | | ??????????????????#########+#???????? | | ??????????????????????????# ######### | +----------------------------------------------------+ Best States ------------- Heat Dissipation 61 Energy Generation 16 Energy Capacity 290 Matter Stores 300 Matter Capacity 300 Sight Range 18 Terrain Scan Density 10 Armor Coverage 450 Resistance: KI 20 Propulsion Shielding 66 Evasion (%) 45 Recoil Reduction 2 Item Schematics ----------------- None Robot Schematics ------------------ None Fabricated ------------ Nothing Alien Tech Used ----------------- None Achievements -------------- None Challenges ------------ None Game ------ Seed PhasingRocketShifter Manual? 0 Play Time 00:22:05 Cumulative 271.0 hours Start 2022.05.18 @ 22:16:24 End 2022.05.18 @ 22:36:17 Sessions 1 Manual Loads 0 Difficulty Rogue Special Mode None Game No. 512 Rogue 357 Adventurer 148 Explorer 7 Win Type - Total 10 Types 8/0/1/1/0/0/0/0/0 Lore% 71 Gallery% 83 Achievement% 66 Wizard Run 0 Options --------- ASCII 0 Keyboard 0 Movement Numpad Keybinds 0 Fullscreen 1 Font 18/SmallcapsGlow Map View 76x50 Tactical HUD 1 Map Filters NONE Filters NONE Steam 1 RUN: d769d73a-ddae-4195-aad9-f7fc2afcf5b1